fUSD/lending_fUSD_20250826
["ID","MTS","AMOUNT","RATE_DAILY","PERIOD"]
[381491217,1756230807776,-1048.88,0.00029589,5]
[381491218,1756230807785,-635.0,0.00029589,5]
[381491219,1756230807794,-916.09,0.00029589,5]
[381491220,1756230807806,-400.0,0.00029589,5]
[381491221,1756230807815,-1476.54,0.00029589,5]
[381491222,1756230807824,-586.32,0.00029589,5]
[381491223,1756230807834,-735.88,0.00029589,5]
[381491224,1756230807843,-420.01,0.00029589,5]
[381491225,1756230807852,-1424.15,0.00029589,5]
[381491226,1756230807861,-865.15,0.00029589,5]
[381491227,1756230807870,-711.61,0.00029589,5]
[381491228,1756230807879,-400.0,0.00029589,5]
[381491229,1756230807888,-657.69,0.00029589,5]
[381491230,1756230807898,-2547.01,0.00029589,5]
[381491231,1756230807907,-924.7,0.00029589,5]
[381491232,1756230807917,-1447.41,0.00029589,5]
[381491233,1756230807926,-569.85,0.00029589,5]
[381491234,1756230807936,-947.0,0.00029589,5]
[381491235,1756230807947,-1125.16,0.00029589,5]
[381491236,1756230807957,-1186.06,0.00029589,5]
[381491237,1756230807966,-1017.63,0.00029589,5]
[381491238,1756230807976,-509.43,0.00029589,5]
[381491239,1756230807985,-629.18,0.00029589,5]
[381491240,1756230807994,-1490.01,0.00029589,5]
[381491241,1756230808004,-1054.6,0.00029589,5]
[381491242,1756230808013,-516.44,0.00029589,5]
[381491243,1756230808021,-810.92,0.00029589,5]
[381491244,1756230808030,-682.69,0.00029589,5]
[381491245,1756230808040,-883.73,0.00029589,5]
[381491246,1756230808051,-1283.33,0.00029589,5]
[381491247,1756230808061,-817.88,0.00029589,5]
[381491248,1756230808070,-1591.74,0.00029589,5]
[381491249,1756230808080,-1009.65,0.00029589,5]
[381491250,1756230808089,-657.14,0.00029589,5]
[381491251,1756230808098,-559.69,0.00029589,5]
[381491252,1756230808108,-400.0,0.00029589,5]
[381491253,1756230808118,-434.49,0.00029589,5]
[381491254,1756230808127,-839.27,0.00029589,5]
[381491255,1756230808136,-400.0,0.00029589,5]
[381491256,1756230808146,-694.48,0.00029589,5]
[381491257,1756230808155,-400.0,0.00029589,5]
[381491258,1756230808164,-1164.11,0.00029589,5]
[381491259,1756230808174,-2471.18,0.00029589,5]
[381491260,1756230808184,-543.23,0.00029589,5]
[381491261,1756230808194,-923.85,0.00029589,5]
[381491262,1756230808204,-735.71,0.00029589,5]
[381491263,1756230808214,-602.76,0.00029589,5]
[381491264,1756230808223,-1015.23,0.00029589,5]
[381491265,1756230808233,-1297.06,0.00029589,5]
[381491266,1756230808242,-400.0,0.00029589,5]
[381491267,1756230808252,-400.0,0.00029589,5]
[381491268,1756230808261,-1022.18,0.00029589,5]
[381491269,1756230808271,-413.82,0.00029589,5]
[381491270,1756230808281,-400.0,0.00029589,5]
[381491271,1756230808291,-435.62,0.00029589,5]
[381491272,1756230808301,-481.79,0.00029589,5]
[381491273,1756230808310,-677.17,0.00029589,5]
[381491274,1756230808320,-869.43,0.00029589,5]
[381491275,1756230808330,-400.0,0.00029589,5]
[381491276,1756230808339,-1587.32,0.00029589,5]
[381491277,1756230808349,-404.82,0.00029589,5]
[381491278,1756230808358,-795.96,0.00029589,5]
[381491279,1756230808368,-1419.4,0.00029589,5]
[381491280,1756230808377,-400.0,0.00029589,5]
[381491281,1756230808387,-400.0,0.00029589,5]
[381491282,1756230808396,-400.0,0.00029589,5]
[381491283,1756230808405,-1337.38,0.00029589,5]
[381491284,1756230808414,-643.48,0.00029589,5]
[381491285,1756230808423,-1193.06,0.00029589,5]
[381491286,1756230808433,-1262.91,0.00029589,5]
[381491287,1756230808443,-1405.96,0.00029589,5]
[381491288,1756230808452,-400.0,0.00029589,5]
[381491289,1756230808461,-400.0,0.00029589,5]
[381491290,1756230808471,-1694.19,0.00029589,5]
[381491291,1756230808481,-847.69,0.00029589,5]
[381491292,1756230808490,-1432.19,0.00029589,5]
[381491293,1756230808500,-837.85,0.00029589,5]
[381491294,1756230808509,-1265.35,0.00029589,5]
[381491295,1756230808519,-1066.71,0.00029589,5]
[381491296,1756230808528,-1337.65,0.00029589,5]
[381491297,1756230808538,-983.38,0.00029589,5]
[381491298,1756230808548,-448.3,0.00029589,5]
[381491299,1756230808557,-1419.37,0.00029589,5]
[381491300,1756230808567,-510.88,0.00029589,5]
[381491301,1756230808576,-2638.84,0.00029589,5]
[381491302,1756230808586,-1378.39,0.00029589,5]
[381491303,1756230808595,-866.21,0.00029589,5]
[381491304,1756230808605,-436.05,0.00029589,5]
[381491305,1756230808615,-1097.19,0.00029589,5]
[381491306,1756230808624,-400.0,0.00029589,5]
[381491307,1756230808634,-968.52,0.00029589,5]
[381491308,1756230808643,-1097.27,0.00029589,5]
[381491309,1756230808652,-898.9,0.00029589,5]
[381491310,1756230808661,-400.0,0.00029589,5]
[381491311,1756230808671,-1054.02,0.00029589,5]
[381491312,1756230808680,-894.21,0.00029589,5]
[381491313,1756230808694,-486.16,0.00029589,5]
[381491314,1756230808703,-2351.0,0.00029589,5]
[381491315,1756230808713,-400.0,0.00029589,5]
[381491316,1756230808722,-400.0,0.00029589,5]
[381491317,1756230808733,-990.16,0.00029589,5]
[381491318,1756230808742,-400.0,0.00029589,5]
[381491319,1756230808752,-708.23,0.00029589,5]
[381491320,1756230808764,-812.56,0.00029589,5]
[381491321,1756230808773,-1481.93,0.00029589,5]
[381491322,1756230808783,-400.0,0.00029589,5]
[381491323,1756230808792,-1309.05,0.00029589,5]
[381491324,1756230808802,-400.0,0.00029589,5]
[381491325,1756230808812,-716.67,0.00029589,5]
[381491326,1756230808822,-12576.35,0.00029589,5]
[381491327,1756230808832,-1045.55,0.00029589,5]
[381491328,1756230808842,-440.38,0.00029589,5]
[381491329,1756230808852,-1040.13,0.00029589,5]
[381491330,1756230808862,-610.13,0.00029589,5]
[381491331,1756230808872,-1232.14,0.00029589,5]
[381491332,1756230808882,-400.0,0.00029589,5]
[381491333,1756230808892,-453.93,0.00029589,5]
[381491334,1756230808902,-513.88,0.00029589,5]
[381491335,1756230808912,-1004.11,0.00029589,5]
[381491336,1756230808921,-1144.57,0.00029589,5]
[381491337,1756230808932,-956.51,0.00029589,5]
[381491338,1756230808941,-752.61,0.00029589,5]
[381491339,1756230808951,-2716.73,0.00029589,5]
[381491340,1756230808962,-1348.02,0.00029589,5]
[381491341,1756230808971,-400.0,0.00029589,5]
[381491342,1756230808982,-400.0,0.00029589,5]
[381491343,1756230808992,-795.95,0.00029589,5]
[381491344,1756230809002,-720.68,0.00029589,5]
[381491345,1756230809153,-400.0,0.00029589,5]
[381491346,1756230809163,-583.37,0.00029589,5]
[381491347,1756230809173,-1164.87,0.00029589,5]
[381491348,1756230809182,-796.49,0.00029589,5]
[381491349,1756230809192,-1208.11,0.00029589,5]
[381491350,1756230809202,-1234.75,0.00029589,5]
[381491351,1756230809212,-1090.57,0.00029589,5]
[381491352,1756230809222,-725.15,0.00029589,5]
[381491353,1756230809232,-400.0,0.00029589,5]
[381491354,1756230809242,-1204.31,0.00029589,5]
[381491355,1756230809252,-2365.85,0.00029589,5]
[381491356,1756230809261,-607.03,0.00029589,5]
[381491357,1756230809271,-1391.48,0.00029589,5]
[381491358,1756230809281,-1460.18,0.00029589,5]
[381491359,1756230809291,-774.92,0.00029589,5]
[381491360,1756230809301,-1529.6,0.00029589,5]
[381491361,1756230809311,-949.27,0.00029589,5]
[381491362,1756230809320,-1214.51,0.00029589,5]
[381491363,1756230809330,-681.18,0.00029589,5]
[381491364,1756230809340,-1381.91,0.00029589,5]
[381491365,1756230809350,-846.41,0.00029589,5]
[381491366,1756230809359,-2660.08,0.00029589,5]
[381491367,1756230809369,-1268.24,0.00029589,5]
[381491368,1756230809379,-870.23,0.00029589,5]
[381491369,1756230809388,-1218.74,0.00029589,5]
[381491370,1756230809398,-960.42,0.00029589,5]
[381491371,1756230809408,-727.24,0.00029589,5]
[381491372,1756230809417,-836.11,0.00029589,5]
[381491373,1756230809427,-1206.86,0.00029589,5]
[381491374,1756230809437,-400.0,0.00029589,5]
[381491375,1756230809447,-935.16,0.00029589,5]
[381491376,1756230809457,-1646.5,0.00029589,5]
[381491377,1756230809467,-5333.52,0.00029589,5]
[381491378,1756230809478,-696.66,0.00029589,5]
[381491379,1756230809487,-446.0,0.00029589,5]
[381491380,1756230809497,-400.0,0.00029589,5]
[381491381,1756230809506,-440.57593885,0.00029589,2]
[381491382,1756230809516,-859.49,0.00029589,5]
[381491383,1756230809525,-1578.12,0.00029589,5]
[381491384,1756230809535,-928.83,0.00029589,5]
[381491385,1756230809544,-1272.58,0.00029589,5]
[381491386,1756230809555,-400.0,0.00029589,5]
[381491387,1756230809564,-400.0,0.00029589,5]
[381491388,1756230809573,-604.92,0.00029589,5]
[381491389,1756230809584,-400.0,0.00029589,5]
[381491390,1756230809594,-636.63,0.00029589,5]
[381491391,1756230809603,-400.0,0.00029589,5]
[381491392,1756230809614,-714.94,0.00029589,5]
[381491393,1756230809624,-752.58,0.00029589,5]
[381491394,1756230809635,-525.95,0.00029589,5]
[381491395,1756230809645,-1703.78,0.00029589,5]
[381491396,1756230809655,-350.94512454,0.00029589,5]
[381491397,1756230809665,-607.66,0.00029589,5]
[381491398,1756230809676,-200.0,0.0002959,2]
[381491399,1756230809688,-176.47561258,0.0002959,2]
[381491400,1756230809702,-500.0,0.0002959,2]
[381491401,1756230809712,-500.0,0.0002959,2]
[381491402,1756230809722,-150.0,0.0002959,2]
[381491403,1756230809732,-500.0,0.0002959,2]
[381491404,1756230809744,-500.0,0.0002959,2]
[381491405,1756230809754,-200.0,0.0002959,2]
[381491406,1756230809764,-500.0,0.0002959,2]
[381491407,1756230809774,-500.0,0.0002959,2]
[381491408,1756230809783,-300.0,0.0002959,2]
[381491409,1756230809793,-500.0,0.0002959,2]
[381491410,1756230809804,-450.0,0.0002959,2]
[381491411,1756230809815,-1349.0,0.0002959,2]
[381491412,1756230809825,-150.0,0.0002959,2]
[381491413,1756230809835,-500.0,0.0002959,2]
[381491414,1756230809845,-500.0,0.0002959,2]
[381491415,1756230809855,-1052.0,0.0002959,2]
[381491416,1756230809865,-200.0,0.0002959,2]
[381491417,1756230809875,-540.8839278,0.00029616,5]
[381491418,1756230809885,-150.0,0.00029658,30]
[381491419,1756230809895,-512.95201252,0.00029658,30]
[381491420,1756230809904,-183.19289586,0.00029658,30]
[381491421,1756230809914,-150.0,0.00029658,30]
[381491422,1756230809923,-1582.36386729,0.00029658,30]
[381491423,1756230809933,-150.0,0.00029658,30]
[381491424,1756230809942,-1299.31243868,0.00029658,30]
[381491425,1756230809952,-200.0,0.0002966,30]
[381491426,1756230809962,-296.0,0.0002966,2]
[381491427,1756230809971,-213.0,0.0002966,2]
[381491428,1756230809981,-500.0,0.00029666,8]
[381491429,1756230809990,-500.0,0.00029666,8]
[381491430,1756230810000,-10383.51663219,0.00029699,2]
[381491431,1756230810011,-2192.0,0.000297,2]
[381491432,1756230810021,-1800.0,0.00029761,7]
[381491433,1756230810030,-3000.0,0.00029761,7]
[381491434,1756230810040,-23123.16488376,0.00029777,12]
[381491435,1756230810050,-200.0,0.00029787,2]
[381491436,1756230810060,-200.0,0.00029787,2]
[381491437,1756230810070,-200.0,0.00029787,2]
[381491438,1756230810079,-200.0,0.00029787,2]
[381491439,1756230810089,-200.0,0.00029787,2]
[381491440,1756230810098,-200.0,0.00029787,2]
[381491441,1756230810108,-200.0,0.00029787,2]
[381491442,1756230810117,-800.0,0.00029787,13]
[381491443,1756230810127,-800.0,0.00029787,13]
[381491444,1756230810136,-800.0,0.00029787,13]
[381491445,1756230810146,-800.0,0.00029787,13]
[381491446,1756230810155,-800.0,0.00029787,13]
[381491447,1756230810164,-800.0,0.00029787,13]
[381491448,1756230810174,-800.0,0.00029787,13]
[381491449,1756230810183,-800.0,0.00029787,13]
[381491450,1756230810193,-800.0,0.00029787,13]
[381491451,1756230810203,-800.0,0.00029787,13]
[381491452,1756230810212,-800.0,0.00029787,13]
[381491453,1756230810222,-800.0,0.00029787,13]
[381491454,1756230810232,-200.0,0.00029787,2]
[381491455,1756230810241,-200.0,0.00029787,2]
[381491456,1756230810251,-200.0,0.00029787,2]
[381491457,1756230810260,-209.0,0.00029787,2]
[381491458,1756230810270,-800.0,0.00029787,13]
[381491459,1756230810280,-800.0,0.00029787,13]
[381491460,1756230810290,-800.0,0.00029787,13]
[381491461,1756230810301,-800.0,0.00029787,13]
[381491462,1756230810311,-800.0,0.00029787,13]
[381491463,1756230810320,-800.0,0.00029787,13]
[381491464,1756230810330,-800.0,0.00029787,13]
[381491465,1756230810340,-800.0,0.00029787,13]
[381491466,1756230810350,-800.0,0.00029787,13]
[381491467,1756230810359,-800.0,0.00029787,13]
[381491468,1756230810368,-800.0,0.00029787,13]
[381491469,1756230810378,-800.0,0.00029787,13]
[381491470,1756230810388,-800.0,0.00029787,13]
[381491471,1756230810397,-800.0,0.00029787,13]
[381491472,1756230810407,-800.0,0.00029787,13]
[381491473,1756230810417,-800.0,0.00029787,13]
[381491474,1756230810427,-800.0,0.00029787,13]
[381491475,1756230810436,-800.0,0.00029787,13]
[381491476,1756230810445,-800.0,0.00029787,13]
[381491477,1756230810455,-800.0,0.00029787,13]
[381491478,1756230810465,-800.0,0.00029787,13]
[381491479,1756230810474,-800.0,0.00029787,13]
[381491480,1756230810483,-800.0,0.00029787,13]
[381491481,1756230810493,-800.0,0.00029787,13]
[381491482,1756230810502,-800.0,0.00029787,13]
[381491483,1756230810512,-800.0,0.00029787,13]
[381491484,1756230810522,-800.0,0.00029787,13]
[381491485,1756230810531,-800.0,0.00029787,13]
[381491486,1756230810540,-800.0,0.00029787,13]
[381491487,1756230810550,-800.0,0.00029787,13]
[381491488,1756230810560,-800.0,0.00029787,13]
[381491489,1756230810571,-800.0,0.00029787,13]
[381491490,1756230810580,-800.0,0.00029787,13]
[381491491,1756230810590,-800.0,0.00029787,13]
[381491492,1756230810600,-800.0,0.00029787,13]
[381491493,1756230810610,-800.0,0.00029787,13]
[381491494,1756230810620,-800.0,0.00029787,13]
[381491495,1756230810629,-800.0,0.00029787,13]
[381491496,1756230810638,-800.0,0.00029787,13]
[381491497,1756230810647,-800.0,0.00029787,13]
[381491498,1756230810657,-800.0,0.00029787,13]
[381491499,1756230810666,-800.0,0.00029787,13]
[381491500,1756230810676,-800.0,0.00029787,13]
[381491501,1756230810686,-800.0,0.00029787,13]
[381491502,1756230810698,-800.0,0.00029787,13]
[381491503,1756230810708,-800.0,0.00029787,13]
[381491504,1756230810717,-800.0,0.00029787,13]
[381491505,1756230810727,-800.0,0.00029787,13]
[381491506,1756230810738,-800.0,0.00029787,13]
[381491507,1756230810747,-800.0,0.00029787,13]
[381491508,1756230810756,-800.0,0.00029787,13]
[381491509,1756230810768,-800.0,0.00029787,13]
[381491510,1756230810777,-800.0,0.00029787,13]
[381491511,1756230810786,-800.0,0.00029787,13]
[381491512,1756230810796,-800.0,0.00029787,13]
[381491513,1756230810806,-800.0,0.00029787,13]
[381491514,1756230810815,-800.0,0.00029787,13]
[381491515,1756230810825,-800.0,0.00029787,13]
[381491516,1756230810835,-200.0,0.00029787,2]
[381491517,1756230810845,-200.0,0.00029787,2]
[381491518,1756230810855,-200.0,0.00029787,2]
[381491519,1756230810865,-200.0,0.00029787,2]
[381491520,1756230810875,-200.0,0.00029787,2]
[381491521,1756230810884,-200.0,0.00029787,2]
[381491522,1756230810894,-200.0,0.00029787,2]
[381491523,1756230810904,-200.0,0.00029787,2]
[381491524,1756230810913,-800.0,0.00029787,13]
[381491525,1756230810922,-800.0,0.00029787,13]
[381491526,1756230810932,-800.0,0.00029787,13]
[381491527,1756230810942,-800.0,0.00029787,13]
[381491528,1756230810952,-800.0,0.00029787,13]
[381491529,1756230810962,-942.0,0.00029787,13]
[381491530,1756230810973,-200.0,0.00029787,2]
[381491531,1756230810982,-200.0,0.00029787,2]
[381491532,1756230810992,-200.0,0.00029787,2]
[381491533,1756230811001,-200.0,0.00029787,2]
[381491534,1756230811011,-200.0,0.00029787,2]
[381491535,1756230811020,-200.0,0.00029787,2]
[381491536,1756230811030,-200.0,0.00029787,2]
[381491537,1756230811039,-200.0,0.00029787,2]
[381491538,1756230811048,-200.0,0.00029787,2]
[381491539,1756230811059,-200.0,0.00029787,2]
[381491540,1756230811069,-200.0,0.00029787,2]
[381491541,1756230811078,-200.0,0.00029787,2]
[381491542,1756230811087,-200.0,0.00029787,2]
[381491543,1756230811097,-200.0,0.00029787,2]
[381491544,1756230811107,-200.0,0.00029787,2]
[381491545,1756230811117,-200.0,0.00029787,2]
[381491546,1756230811128,-200.0,0.00029787,2]
[381491547,1756230811137,-1000.0,0.000298,2]
[381491548,1756230811147,-1458.79,0.00029844,5]
[381491549,1756230811156,-400.0,0.00029844,5]
[381491550,1756230811166,-634.76,0.00029844,5]
[381491551,1756230811175,-539.93,0.00029844,5]
[381491552,1756230811185,-690.63,0.00029844,5]
[381491553,1756230811194,-400.0,0.00029844,5]
[381491554,1756230811204,-1099.28,0.00029844,5]
[381491555,1756230811214,-598.43,0.00029844,5]
[381491556,1756230811224,-861.3,0.00029844,5]
[381491557,1756230811234,-400.0,0.00029844,5]
[381491558,1756230811244,-1174.77,0.00029844,5]
[381491559,1756230811254,-774.77,0.00029844,5]
[381491560,1756230811263,-400.0,0.00029844,5]
[381491561,1756230811273,-400.0,0.00029844,5]
[381491562,1756230811283,-1150.13,0.00029844,5]
[381491563,1756230811293,-400.0,0.00029844,5]
[381491564,1756230811303,-554.69,0.00029844,5]
[381491565,1756230811313,-689.46,0.00029844,5]
[381491566,1756230811322,-400.0,0.00029844,5]
[381491567,1756230811331,-400.0,0.00029844,5]
[381491568,1756230811340,-400.0,0.00029844,5]
[381491569,1756230811349,-933.25,0.00029844,5]
[381491570,1756230811359,-989.27,0.00029844,5]
[381491571,1756230811368,-400.0,0.00029844,5]
[381491572,1756230811378,-400.0,0.00029844,5]
[381491573,1756230811387,-820.77,0.00029844,5]
[381491574,1756230811742,-786.47,0.00029844,5]
[381491575,1756230811752,-615.26,0.00029844,5]
[381491576,1756230811762,-400.0,0.00029844,5]
[381491577,1756230811772,-617.18,0.00029844,5]
[381491578,1756230811782,-400.0,0.00029844,5]
[381491579,1756230811792,-1146.58,0.00029844,5]
[381491580,1756230811802,-414.98,0.00029844,5]
[381491581,1756230811811,-645.15,0.00029844,5]
[381491582,1756230811821,-400.0,0.00029844,5]
[381491583,1756230811831,-400.0,0.00029844,5]
[381491584,1756230811840,-472.76,0.00029844,5]
[381491585,1756230811849,-1487.28,0.00029844,5]
[381491586,1756230811859,-400.0,0.00029844,5]
[381491587,1756230811868,-709.5,0.00029844,5]
[381491588,1756230811878,-781.03,0.00029844,5]
[381491589,1756230811887,-400.0,0.00029844,5]
[381491590,1756230811896,-736.53,0.00029844,5]
[381491591,1756230811906,-400.0,0.00029844,5]
[381491592,1756230811916,-475.59,0.00029844,5]
[381491593,1756230811926,-400.0,0.00029844,5]
[381491594,1756230811935,-400.0,0.00029844,5]
[381491595,1756230811946,-586.19,0.00029844,5]
[381491596,1756230811956,-1100.6,0.00029844,5]
[381491597,1756230811965,-400.0,0.00029844,5]
[381491598,1756230811975,-558.77,0.00029844,5]
[381491599,1756230811985,-805.61,0.00029844,5]
[381491600,1756230811994,-587.26,0.00029844,5]
[381491601,1756230812005,-880.88,0.00029844,5]
[381491602,1756230812015,-528.93,0.0002985,5]
[381491603,1756230812025,-528.93,0.0002985,5]
[381491604,1756230812035,-528.93,0.0002985,5]
[381491605,1756230812045,-528.93,0.0002985,5]
[381491606,1756230812054,-529.01,0.0002985,5]
[381491607,1756230812064,-1142.86,0.00029862,5]
[381491608,1756230812073,-1254.63,0.00029862,5]
[381491609,1756230812083,-1057.93,0.00029862,5]
[381491610,1756230812092,-1079.24,0.00029862,5]
[381491611,1756230812101,-3055.95,0.00029862,5]
[381491612,1756230812110,-1650.32,0.00029862,5]
[381491613,1756230812120,-13513.14,0.00029862,5]
[381491614,1756230812129,-2253.65,0.00029862,5]
[381491615,1756230812138,-1270.75,0.00029862,5]
[381491616,1756230812147,-2157.11,0.00029862,5]
[381491617,1756230812157,-1950.58,0.00029862,5]
[381491618,1756230812167,-1356.06,0.00029862,5]
[381491619,1756230812176,-1314.24,0.00029862,5]
[381491620,1756230812186,-1468.69,0.00029862,5]
[381491621,1756230812195,-809.74,0.00029862,5]
[381491622,1756230812204,-1206.09,0.00029862,5]
[381491623,1756230812214,-741.88,0.00029862,5]
[381491624,1756230812223,-1611.27,0.00029862,5]
[381491625,1756230812234,-1224.97,0.00029862,5]
[381491626,1756230812244,-1049.32,0.00029862,5]
[381491627,1756230812254,-976.61,0.00029862,5]
[381491628,1756230812264,-1611.56,0.00029862,5]
[381491629,1756230812274,-869.98,0.00029862,5]
[381491630,1756230812283,-1131.94,0.00029862,5]
[381491631,1756230812293,-782.57,0.00029862,5]
[381491632,1756230812303,-1548.86,0.00029862,5]
[381491633,1756230812313,-1331.02,0.00029862,5]
[381491634,1756230812323,-1391.3,0.00029862,5]
[381491635,1756230812334,-1191.31,0.00029862,5]
[381491636,1756230812350,-1107.49,0.00029862,5]
[381491637,1756230812360,-1320.74,0.00029862,5]
[381491638,1756230812370,-1054.46,0.00029862,5]
[381491639,1756230812380,-400.0,0.00029862,5]
[381491640,1756230812390,-1150.33,0.00029862,5]
[381491641,1756230812401,-819.86,0.00029862,5]
[381491642,1756230812411,-400.0,0.00029862,5]
[381491643,1756230812421,-933.75,0.00029862,5]
[381491644,1756230812431,-1547.78,0.00029862,5]
[381491645,1756230812442,-1438.18,0.00029862,5]
[381491646,1756230812453,-1497.03,0.00029862,5]
[381491647,1756230812463,-6789.96,0.00029862,5]
[381491648,1756230812474,-1497.12,0.00029862,5]
[381491649,1756230812484,-400.0,0.00029862,5]
[381491650,1756230812494,-863.08,0.00029862,5]
[381491651,1756230812505,-753.29,0.00029862,5]
[381491652,1756230812515,-787.78,0.00029862,5]
[381491653,1756230812525,-1613.31,0.00029862,5]
[381491654,1756230812536,-773.75,0.00029862,5]
[381491655,1756230812547,-586.3,0.00029862,5]
[381491656,1756230812557,-530.09,0.00029862,5]
[381491657,1756230812567,-1037.63,0.00029862,5]
[381491658,1756230812578,-1217.55,0.00029862,5]
[381491659,1756230812588,-1228.91,0.00029862,5]
[381491660,1756230812598,-400.0,0.00029862,5]
[381491661,1756230812609,-1141.77,0.00029862,5]
[381491662,1756230812619,-1590.13,0.00029862,5]
[381491663,1756230812629,-924.3,0.00029862,5]
[381491664,1756230812640,-575.23,0.00029862,5]
[381491665,1756230812649,-664.99,0.00029862,5]
[381491666,1756230812660,-778.5,0.00029862,5]
[381491667,1756230812671,-1457.28,0.00029862,5]
[381491668,1756230812680,-724.45,0.00029862,5]
[381491669,1756230812692,-847.97,0.00029862,5]
[381491670,1756230812702,-630.74,0.00029862,5]
[381491671,1756230812712,-1505.52,0.00029862,5]
[381491672,1756230812723,-717.92,0.00029862,5]
[381491673,1756230812735,-431.96,0.00029862,5]
[381491674,1756230812748,-1179.57,0.00029862,5]
[381491675,1756230812758,-1699.29,0.00029862,5]
[381491676,1756230812773,-854.23,0.00029862,5]
[381491677,1756230812785,-628.02,0.00029862,5]
[381491678,1756230812795,-1139.37,0.00029862,5]
[381491679,1756230812805,-480.43,0.00029862,5]
[381491680,1756230812815,-683.47,0.00029862,5]
[381491681,1756230812826,-1228.89,0.00029862,5]
[381491682,1756230812835,-400.0,0.00029863,5]
[381491683,1756230812845,-1156.63,0.00029863,5]
[381491684,1756230812856,-814.45,0.00029863,5]
[381491685,1756230812866,-400.0,0.00029863,5]
[381491686,1756230812876,-1203.77,0.00029863,5]
[381491687,1756230812886,-677.3,0.00029863,5]
[381491688,1756230812896,-1373.11,0.00029863,5]
[381491689,1756230812906,-412.27,0.00029863,5]
[381491690,1756230812916,-466.37,0.00029863,5]
[381491691,1756230812926,-884.22,0.00029863,5]
[381491692,1756230812936,-579.9,0.00029863,5]
[381491693,1756230812946,-503.27,0.00029863,5]
[381491694,1756230812955,-783.4,0.00029863,5]
[381491695,1756230812965,-1036.02,0.00029863,5]
[381491696,1756230812975,-473.09,0.00029863,5]
[381491697,1756230812985,-400.0,0.00029863,5]
[381491698,1756230812994,-440.17,0.00029863,5]
[381491699,1756230813006,-1153.6,0.00029863,5]
[381491700,1756230813016,-985.74,0.00029863,5]
[381491701,1756230813026,-400.0,0.00029863,5]
[381491702,1756230813038,-640.2,0.00029863,5]
[381491703,1756230813049,-400.0,0.00029863,5]
[381491704,1756230813059,-743.45,0.00029863,5]
[381491705,1756230813069,-400.0,0.00029863,5]
[381491706,1756230813078,-700.09,0.00029863,5]
[381491707,1756230813089,-400.0,0.00029863,5]
[381491708,1756230813099,-693.81,0.00029863,5]
[381491709,1756230813109,-707.36,0.00029863,5]
[381491710,1756230813119,-406.06,0.00029863,5]
[381491711,1756230813129,-431.16,0.00029863,5]
[381491712,1756230813140,-701.05,0.00029863,5]
[381491713,1756230813150,-400.0,0.00029863,5]
[381491714,1756230813160,-547.99,0.00029863,5]
[381491715,1756230813170,-929.8,0.00029863,5]
[381491716,1756230813180,-400.0,0.00029863,5]